Workbook

Sheet CIR-Model (VBA)
A1: CIR-Model (VBA)
A3: Input Factors | D3: Calculations
A4: μ | B4: 0.06 | D4: γ | E4: =($B$6^2+2*$B$5^2)^0.5 -> 0.1025573011
A5: σ | B5: 0.053 | D5: A | E5: =((2*$E$4*EXP(($B$6+$E$4)*($B$9-$B8)/2))/(($E$4+$B$6)*(EXP($E$4*($B$9-$B8))-1)+2*$E$4))^(2*$B$6*$B$4/$B$5^2) -> 0.9365182347
A6: θ | B6: 0.07 | D6: B | E6: =(2*(EXP($E$4*($B$9-$B8))-1))/(($E$4+$B$6)*(EXP($E$4*($B$9-$B8))-1)+2*$E$4) -> 4.833421573
A7: r (t = 0) | B7: 0.05 | D7: ZBDF (T) | E7: =E5*EXP(-E6*B7) -> 0.7354612946
A8: t | B8: 0 | D8: r (T) | E8: =LN(1/$E$7)/($B$9-$B$8) -> 0.05120956081
A9: T (years) | B9: 6
A10: N | B10: 2000
A11: ∆t | B11: =B9/B10 -> 0.003
A13: 1. Term Structure
C15: Excel | E15: VBA
B16: Maturity (T) | C16: ZBDF (T) | D16: r(t) | E16: ZBDF (T) | F16: r(t)
C17: =E7 -> 0.7354612946
B18: 1e-08 | C18: 0.9999999995 | D18: =LN(1/C18)/(B18-$B$8) -> 0.05000000412 | E18: =CIR_ZBDF($B$4,$B$5,$B$6,$B$7,$B$8,B18) -> 0.9999999995 | F18: =LN(1/E18)/(B18-$B$8) -> 0.05000000412
B19: 0.5 | C19: 0.9752283474 | D19: =LN(1/C19)/(B19-$B$8) -> 0.05016726596 | E19: =CIR_ZBDF($B$4,$B$5,$B$6,$B$7,$B$8,B19) -> 0.9752283474 | F19: =LN(1/E19)/(B19-$B$8) -> 0.05016726596
B20: 1 | C20: 0.9509253743 | D20: 0.05031969031 | E20: 0.9509253743 | F20: 0.05031969031
B21: 2 | C21: 0.9037818665 | D21: 0.05058362293 | E21: 0.9037818665 | F21: 0.05058362293
B22: 3 | C22: 0.8586482656 | D22: 0.05079863684 | E22: 0.8586482656 | F22: 0.05079863684
B23: 4 | C23: 0.8155570805 | D23: 0.05097096622 | E23: 0.8155570805 | F23: 0.05097096622
B24: 5 | C24: 0.7745049272 | D24: 0.05110625148 | E24: 0.7745049272 | F24: 0.05110625148
B25: 6 | C25: 0.7354612946 | D25: 0.05120956081 | E25: 0.7354612946 | F25: 0.05120956081
B26: 7 | C26: 0.6983757922 | D26: 0.05128541956 | E26: 0.6983757922 | F26: 0.05128541956
B27: 8 | C27: 0.6631840285 | D27: 0.05133784475 | E27: 0.6631840285 | F27: 0.05133784475
B28: 9 | C28: 0.6298122964 | D28: 0.05137038292 | E28: 0.6298122964 | F28: 0.05137038292
B29: 10 | C29: 0.5981812404 | D29: 0.05138614933 | E29: 0.5981812404 | F29: 0.05138614933
B30: 15 | C30: 0.4632646544 | D30: 0.05129711869 | E30: 0.4632646544 | F30: 0.05129711869
B31: 20 | C31: 0.3600709329 | D31: 0.05107271156 | E31: 0.3600709329 | F31: 0.05107271156
B32: 25 | C32: 0.2806921842 | D32: 0.05081986561 | E32: 0.2806921842 | F32: 0.05081986561
B33: 30 | C33: 0.21926836 | D33: 0.0505819637 | E33: 0.21926836 | F33: 0.0505819637
A35: 2. Path Simulation
A37: N | B37: Maturity | C37: Path 1 | D37: ZBDF (t) | F37: Δ
A38: 0 | B38: 0 | C38: =B7 -> 0.05 | D38: =CIR_ZBDF($B$4,$B$5,$B$6,$C38,$B$8,B38) -> 1 | H38: # of classes | I38: 30
A39: =IF(A38="","",IF(A38+1<=$B$10,A38+1,"")) -> 1 | B39: =IF(A39="","",B38+$B$11) -> 0.003 | C39: =IF(A39="","",CIR($B$4,$B$5,$B$6,C38,$B38,$B39)) -> 0.05000934691 | D39: =IF(A39="","",CIR_ZBDF($B$4,$B$5,$B$6,$C39,$B$8,B39)) -> 0.9998499801 | F39: =IF(A39="","",C39-C38) -> 9.346911551e-06 | H39: Class width | I39: =(I41-I42)/I38 -> 7.882261535e-06
A40: 2 | B40: 0.006 | C40: =IF(A40="","",CIR($B$4,$B$5,$B$6,C39,$B39,$B40)) -> 0.05005840371 | D40: =IF(A40="","",CIR_ZBDF($B$4,$B$5,$B$6,$C40,$B$8,B40)) -> 0.9996996822 | F40: =IF(A40="","",C40-C39) -> 4.905680295e-05
A41: 3 | B41: 0.009 | C41: =IF(A41="","",CIR($B$4,$B$5,$B$6,C40,$B40,$B41)) -> 0.05004021438 | D41: 0.9995497113 | F41: -1.818933938e-05 | H41: Maximum | I41: =MAX(F39:F10206) -> 0.0001176441486
A42: 4 | B42: 0.012 | C42: =IF(A42="","",CIR($B$4,$B$5,$B$6,C41,$B41,$B42)) -> 0.05010244428 | D42: 0.9993989016 | F42: 6.222990017e-05 | H42: Minimum | I42: =MIN(F39:F10206) -> -0.0001188236975
A43: 5 | B43: 0.015 | C43: =IF(A43="","",CIR($B$4,$B$5,$B$6,C42,$B42,$B43)) -> 0.0501206749 | D43: 0.9992483948 | F43: 1.823062798e-05 | H43: Average | I43: =AVERAGE(F39:F10206) -> 2.745630559e-06
A44: 6 | B44: 0.018 | C44: =IF(A44="","",CIR($B$4,$B$5,$B$6,C43,$B43,$B44)) -> 0.05008064226 | D44: 0.9990988424 | F44: -4.003263865e-05
A45: 7 | B45: 0.021 | C45: =IF(A45="","",CIR($B$4,$B$5,$B$6,C44,$B44,$B45)) -> 0.05006733408 | D45: 0.9989489857 | F45: -1.330818308e-05 | H45: =IF((H44+1)<=$I$38,H44+1,"") -> 1 | I45: =I41 -> 0.0001176441486 | J45: =FREQUENCY(F39:F10206,I45:I74) -> 1
A46: 8 | B46: 0.024 | C46: =IF(A46="","",CIR($B$4,$B$5,$B$6,C45,$B45,$B46)) -> 0.05011051348 | D46: 0.9987978719 | F46: 4.317939355e-05 | H46: =IF((H45+1)<=$I$38,H45+1,"") -> 2 | I46: =IF(H46<>"",IF(H46=$I$38,$I$42,I45-$I$39),"") -> 0.000109761887 | J46: 6
A47: 9 | B47: 0.027 | C47: =IF(A47="","",CIR($B$4,$B$5,$B$6,C46,$B46,$B47)) -> 0.05006963886 | D47: 0.9986487807 | F47: -4.087461817e-05 | H47: 3 | I47: =IF(H47<>"",IF(H47=$I$38,$I$42,I46-$I$39),"") -> 0.0001018796255 | J47: 5
A48: 10 | B48: 0.03 | C48: =IF(A48="","",CIR($B$4,$B$5,$B$6,C47,$B47,$B48)) -> 0.05011967729 | D48: 0.9984972296 | F48: 5.003843194e-05 | H48: 4 | I48: 9.399736396e-05 | J48: 7
A49: 11 | B49: 0.033 | C49: =IF(A49="","",CIR($B$4,$B$5,$B$6,C48,$B48,$B49)) -> 0.05017486482 | D49: 0.9983452268 | F49: 5.518753501e-05 | H49: 5 | I49: 8.611510242e-05 | J49: 9
A50: 12 | B50: 0.036 | C50: =IF(A50="","",CIR($B$4,$B$5,$B$6,C49,$B49,$B50)) -> 0.05019504513 | D50: 0.9981941676 | F50: 2.018030372e-05 | H50: 6 | I50: 7.823284089e-05 | J50: 22
A51: 13 | B51: 0.039 | C51: =IF(A51="","",CIR($B$4,$B$5,$B$6,C50,$B50,$B51)) -> 0.05019811521 | D51: 0.9980436697 | F51: 3.070081576e-06 | H51: 7 | I51: 7.035057935e-05 | J51: 44
A52: 14 | B52: 0.042 | C52: =IF(A52="","",CIR($B$4,$B$5,$B$6,C51,$B51,$B52)) -> 0.05021546693 | D52: 0.9978925724 | F52: 1.735171926e-05 | H52: 8 | I52: 6.246831782e-05 | J52: 59
A53: 15 | B53: 0.045 | C53: =IF(A53="","",CIR($B$4,$B$5,$B$6,C52,$B52,$B53)) -> 0.05025406994 | D53: 0.9977404356 | F53: 3.860301188e-05 | H53: 9 | I53: 5.458605628e-05 | J53: 76
A54: 16 | B54: 0.048 | C54: =IF(A54="","",CIR($B$4,$B$5,$B$6,C53,$B53,$B54)) -> 0.0502741104 | D54: 0.9975889731 | F54: 2.004045879e-05 | H54: 10 | I54: 4.670379475e-05 | J54: 100
A55: 17 | B55: 0.051 | C55: =IF(A55="","",CIR($B$4,$B$5,$B$6,C54,$B54,$B55)) -> 0.05025292686 | D55: 0.9974395013 | F55: -2.118354378e-05 | H55: 11 | I55: 3.882153321e-05 | J55: 114
A56: 18 | B56: 0.054 | C56: =IF(A56="","",CIR($B$4,$B$5,$B$6,C55,$B55,$B56)) -> 0.0502995906 | D56: 0.9972865252 | F56: 4.666374662e-05 | H56: 12 | I56: 3.093927168e-05 | J56: 129
A57: 19 | B57: 0.057 | C57: =IF(A57="","",CIR($B$4,$B$5,$B$6,C56,$B56,$B57)) -> 0.05031258112 | D57: 0.9971351985 | F57: 1.299052286e-05 | H57: 13 | I57: 2.305701014e-05 | J57: 152
A58: 20 | B58: 0.06 | C58: =IF(A58="","",CIR($B$4,$B$5,$B$6,C57,$B57,$B58)) -> 0.05035729363 | D58: 0.9969819178 | F58: 4.471250124e-05 | H58: 14 | I58: 1.517474861e-05 | J58: 175
A59: 21 | B59: 0.063 | C59: =IF(A59="","",CIR($B$4,$B$5,$B$6,C58,$B58,$B59)) -> 0.05037407177 | D59: 0.9968301388 | F59: 1.677814216e-05 | H59: 15 | I59: 7.292487071e-06 | J59: 173
A60: 22 | B60: 0.066 | C60: =IF(A60="","",CIR($B$4,$B$5,$B$6,C59,$B59,$B60)) -> 0.05034592205 | D60: 0.9966812256 | F60: -2.814972122e-05 | H60: 16 | I60: -5.897744644e-07 | J60: 164
A61: 23 | B61: 0.069 | C61: =IF(A61="","",CIR($B$4,$B$5,$B$6,C60,$B60,$B61)) -> 0.0503000286 | D61: 0.9965337135 | F61: -4.58934512e-05 | H61: 17 | I61: -8.472036e-06 | J61: 158
A62: 24 | B62: 0.072 | C62: =IF(A62="","",CIR($B$4,$B$5,$B$6,C61,$B61,$B62)) -> 0.05029128899 | D62: 0.9963838315 | F62: -8.739601771e-06 | H62: 18 | I62: -1.635429754e-05 | J62: 152
A63: 25 | B63: 0.075 | C63: =IF(A63="","",CIR($B$4,$B$5,$B$6,C62,$B62,$B63)) -> 0.0503441961 | D63: 0.9962294241 | F63: 5.290710277e-05 | H63: 19 | I63: -2.423655907e-05 | J63: 126
A64: 26 | B64: 0.078 | C64: =IF(A64="","",CIR($B$4,$B$5,$B$6,C63,$B63,$B64)) -> 0.05032032914 | D64: 0.9960806687 | F64: -2.386696016e-05 | H64: 20 | I64: -3.211882061e-05 | J64: 96
A65: 27 | B65: 0.081 | C65: =IF(A65="","",CIR($B$4,$B$5,$B$6,C64,$B64,$B65)) -> 0.0502553052 | D65: 0.9959353822 | F65: -6.502393938e-05 | H65: 21 | I65: -4.000108214e-05 | J65: 82
A66: 28 | B66: 0.084 | C66: =IF(A66="","",CIR($B$4,$B$5,$B$6,C65,$B65,$B66)) -> 0.05023985104 | D66: 0.9957863631 | F66: -1.545415764e-05 | H66: 22 | I66: -4.788334368e-05 | J66: 54
A67: 29 | B67: 0.087 | C67: =IF(A67="","",CIR($B$4,$B$5,$B$6,C66,$B66,$B67)) -> 0.0502700436 | D67: 0.9956335102 | F67: 3.01925601e-05 | H67: 23 | I67: -5.576560521e-05 | J67: 29
A68: 30 | B68: 0.09 | C68: =IF(A68="","",CIR($B$4,$B$5,$B$6,C67,$B67,$B68)) -> 0.05030198747 | D68: 0.9954803391 | F68: 3.19438697e-05 | H68: 24 | I68: -6.364786675e-05 | J68: 25
A69: 31 | B69: 0.093 | C69: =IF(A69="","",CIR($B$4,$B$5,$B$6,C68,$B68,$B69)) -> 0.05027196938 | D69: 0.995332713 | F69: -3.001808626e-05 | H69: 25 | I69: -7.153012828e-05 | J69: 18
A70: 32 | B70: 0.096 | C70: =IF(A70="","",CIR($B$4,$B$5,$B$6,C69,$B69,$B70)) -> 0.05028622381 | D70: 0.9951810655 | F70: 1.425442358e-05 | H70: 26 | I70: -7.941238982e-05 | J70: 11
A71: 33 | B71: 0.099 | C71: =IF(A71="","",CIR($B$4,$B$5,$B$6,C70,$B70,$B71)) -> 0.0502414594 | D71: 0.9950351443 | F71: -4.47644053e-05 | H71: 27 | I71: -8.729465135e-05 | J71: 6
A72: 34 | B72: 0.102 | C72: =IF(A72="","",CIR($B$4,$B$5,$B$6,C71,$B71,$B72)) -> 0.05022221618 | D72: 0.9948869233 | F72: -1.92432185e-05 | H72: 28 | I72: -9.517691289e-05 | J72: 3
A73: 35 | B73: 0.105 | C73: =IF(A73="","",CIR($B$4,$B$5,$B$6,C72,$B72,$B73)) -> 0.05015849672 | D73: 0.9947434608 | F73: -6.371946759e-05 | H73: 29 | I73: -0.0001030591744 | J73: 3
A74: 36 | B74: 0.108 | C74: =IF(A74="","",CIR($B$4,$B$5,$B$6,C73,$B73,$B74)) -> 0.05018815138 | D74: 0.9945903985 | F74: 2.965466082e-05 | H74: 30 | I74: -0.0001188236975 | J74: 1
A75: 37 | B75: 0.111 | C75: =IF(A75="","",CIR($B$4,$B$5,$B$6,C74,$B74,$B75)) -> 0.05012973535 | D75: 0.9944468619 | F75: -5.841602825e-05
A76: 38 | B76: 0.114 | C76: =IF(A76="","",CIR($B$4,$B$5,$B$6,C75,$B75,$B76)) -> 0.05013393384 | D76: 0.9942966168 | F76: 4.198493247e-06
A77: 39 | B77: 0.117 | C77: =IF(A77="","",CIR($B$4,$B$5,$B$6,C76,$B76,$B77)) -> 0.05009256459 | D77: 0.994151642 | F77: -4.13692482e-05
A78: 40 | B78: 0.12 | C78: =IF(A78="","",CIR($B$4,$B$5,$B$6,C77,$B77,$B78)) -> 0.05005737272 | D78: 0.9940061934 | F78: -3.519187322e-05
A79: 41 | B79: 0.123 | C79: =IF(A79="","",CIR($B$4,$B$5,$B$6,C78,$B78,$B79)) -> 0.05005953506 | D79: 0.9938564214 | F79: 2.162335579e-06
A80: 42 | B80: 0.126 | C80: =IF(A80="","",CIR($B$4,$B$5,$B$6,C79,$B79,$B80)) -> 0.05007625922 | D80: 0.993704838 | F80: 1.672416667e-05
A81: 43 | B81: 0.129 | C81: =IF(A81="","",CIR($B$4,$B$5,$B$6,C80,$B80,$B81)) -> 0.05012444152 | D81: 0.9935491591 | F81: 4.818229735e-05
A82: 44 | B82: 0.132 | C82: =IF(A82="","",CIR($B$4,$B$5,$B$6,C81,$B81,$B82)) -> 0.05014049917 | D82: 0.993397407 | F82: 1.605764752e-05
A83: 45 | B83: 0.135 | C83: =IF(A83="","",CIR($B$4,$B$5,$B$6,C82,$B82,$B83)) -> 0.05015175317 | D83: 0.9932462185 | F83: 1.125400717e-05
A84: 46 | B84: 0.138 | C84: =IF(A84="","",CIR($B$4,$B$5,$B$6,C83,$B83,$B84)) -> 0.05017183326 | D84: 0.9930937768 | F84: 2.008008581e-05
A85: 47 | B85: 0.141 | C85: =IF(A85="","",CIR($B$4,$B$5,$B$6,C84,$B84,$B85)) -> 0.05019277466 | D85: 0.9929411142 | F85: 2.094140178e-05
A86: 48 | B86: 0.144 | C86: =IF(A86="","",CIR($B$4,$B$5,$B$6,C85,$B85,$B86)) -> 0.05016550033 | D86: 0.9927952039 | F86: -2.727433368e-05
A87: 49 | B87: 0.147 | C87: =IF(A87="","",CIR($B$4,$B$5,$B$6,C86,$B86,$B87)) -> 0.05017013441 | D87: 0.9926448379 | F87: 4.634079608e-06
A88: 50 | B88: 0.15 | C88: =IF(A88="","",CIR($B$4,$B$5,$B$6,C87,$B87,$B88)) -> 0.0501432619 | D88: 0.9924991273 | F88: -2.687250475e-05
A89: 51 | B89: 0.153 | C89: =IF(A89="","",CIR($B$4,$B$5,$B$6,C88,$B88,$B89)) -> 0.05011161739 | D89: 0.9923543112 | F89: -3.164450905e-05
A90: 52 | B90: 0.156 | C90: =IF(A90="","",CIR($B$4,$B$5,$B$6,C89,$B89,$B90)) -> 0.0502028331 | D90: 0.9921907837 | F90: 9.121571117e-05
A91: 53 | B91: 0.159 | C91: =IF(A91="","",CIR($B$4,$B$5,$B$6,C90,$B90,$B91)) -> 0.05018782211 | D91: 0.9920434026 | F91: -1.501099755e-05
A92: 54 | B92: 0.162 | C92: =IF(A92="","",CIR($B$4,$B$5,$B$6,C91,$B91,$B92)) -> 0.05014016572 | D92: 0.9919013419 | F92: -4.7656387e-05
A93: 55 | B93: 0.165 | C93: =IF(A93="","",CIR($B$4,$B$5,$B$6,C92,$B92,$B93)) -> 0.05014650117 | D93: 0.9917507918 | F93: 6.335445223e-06
A94: 56 | B94: 0.168 | C94: =IF(A94="","",CIR($B$4,$B$5,$B$6,C93,$B93,$B94)) -> 0.05011334754 | D94: 0.9916067613 | F94: -3.315362621e-05
A95: 57 | B95: 0.171 | C95: =IF(A95="","",CIR($B$4,$B$5,$B$6,C94,$B94,$B95)) -> 0.05003258803 | D95: 0.9914709636 | F95: -8.075951028e-05
A96: 58 | B96: 0.174 | C96: =IF(A96="","",CIR($B$4,$B$5,$B$6,C95,$B95,$B96)) -> 0.05007863621 | D96: 0.991313913 | F96: 4.604818131e-05
A97: 59 | B97: 0.177 | C97: =IF(A97="","",CIR($B$4,$B$5,$B$6,C96,$B96,$B97)) -> 0.05009984581 | D97: 0.9911609415 | F97: 2.120959745e-05
A98: 60 | B98: 0.18 | C98: =IF(A98="","",CIR($B$4,$B$5,$B$6,C97,$B97,$B98)) -> 0.05007229141 | D98: 0.9910165071 | F98: -2.75544022e-05
A99: 61 | B99: 0.183 | C99: =IF(A99="","",CIR($B$4,$B$5,$B$6,C98,$B98,$B99)) -> 0.05015144326 | D99: 0.9908530244 | F99: 7.915185402e-05
A100: 62 | B100: 0.186 | C100: =IF(A100="","",CIR($B$4,$B$5,$B$6,C99,$B99,$B100)) -> 0.05019717291 | D100: 0.9906952171 | F100: 4.572964546e-05
A101: 63 | B101: 0.189 | C101: =IF(A101="","",CIR($B$4,$B$5,$B$6,C100,$B100,$B101)) -> 0.05023542015 | D101: 0.9905385524 | F101: 3.82472488e-05
A102: 64 | B102: 0.192 | C102: =IF(A102="","",CIR($B$4,$B$5,$B$6,C101,$B101,$B102)) -> 0.05019230702 | D102: 0.9903970497 | F102: -4.311313093e-05
A103: =IF(A102="","",IF(A102+1<=$B$10,A102+1,"")) -> 65 | B103: =IF(A103="","",B102+$B$11) -> 0.195 | C103: =IF(A103="","",CIR($B$4,$B$5,$B$6,C102,$B102,$B103)) -> 0.05019354331 | D103: 0.9902473086 | F103: 1.236285519e-06
A104: 66 | B104: 0.198 | C104: =IF(A104="","",CIR($B$4,$B$5,$B$6,C103,$B103,$B104)) -> 0.05021664964 | D104: =IF(A104="","",CIR_ZBDF($B$4,$B$5,$B$6,$C104,$B$8,B104)) -> 0.9900933195 | F104: =IF(A104="","",C104-C103) -> 2.310633168e-05
A105: 67 | B105: 0.201 | C105: =IF(A105="","",CIR($B$4,$B$5,$B$6,C104,$B104,$B105)) -> 0.05027458544 | D105: 0.9899323315 | F105: 5.793579515e-05
A106: 68 | B106: 0.204 | C106: =IF(A106="","",CIR($B$4,$B$5,$B$6,C105,$B105,$B106)) -> 0.05031422607 | D106: 0.9897746925 | F106: 3.964063852e-05
A107: 69 | B107: 0.207 | C107: =IF(A107="","",CIR($B$4,$B$5,$B$6,C106,$B106,$B107)) -> 0.05030002307 | D107: 0.989627791 | F107: -1.42030042e-05
A108: 70 | B108: 0.21 | C108: =IF(A108="","",CIR($B$4,$B$5,$B$6,C107,$B107,$B108)) -> 0.05035337986 | D108: 0.9894670535 | F108: 5.335679437e-05
A109: 71 | B109: 0.213 | C109: =IF(A109="","",CIR($B$4,$B$5,$B$6,C108,$B108,$B109)) -> 0.05034963867 | D109: 0.9893179668 | F109: -3.74119536e-06
A110: 72 | B110: 0.216 | C110: =IF(A110="","",CIR($B$4,$B$5,$B$6,C109,$B109,$B110)) -> 0.05029851651 | D110: 0.9891789659 | F110: -5.112216317e-05
A111: 73 | B111: 0.219 | C111: =IF(A111="","",CIR($B$4,$B$5,$B$6,C110,$B110,$B111)) -> 0.05027603588 | D111: 0.9890341213 | F111: -2.248062618e-05
A112: 74 | B112: 0.222 | C112: =IF(A112="","",CIR($B$4,$B$5,$B$6,C111,$B111,$B112)) -> 0.05024727873 | D112: 0.9888907908 | F112: -2.875714867e-05
A113: 75 | B113: 0.225 | C113: =IF(A113="","",CIR($B$4,$B$5,$B$6,C112,$B112,$B113)) -> 0.05024716834 | D113: 0.9887413204 | F113: -1.10388379e-07
A114: 76 | B114: 0.228 | C114: =IF(A114="","",CIR($B$4,$B$5,$B$6,C113,$B113,$B114)) -> 0.05020270466 | D114: 0.9886017852 | F114: -4.446368467e-05
A115: 77 | B115: 0.231 | C115: =IF(A115="","",CIR($B$4,$B$5,$B$6,C114,$B114,$B115)) -> 0.05016061543 | D115: 0.9884619857 | F115: -4.20892286e-05
A116: 78 | B116: 0.234 | C116: =IF(A116="","",CIR($B$4,$B$5,$B$6,C115,$B115,$B116)) -> 0.05013235304 | D116: 0.9883192742 | F116: -2.82623873e-05
A117: 79 | B117: 0.237 | C117: =IF(A117="","",CIR($B$4,$B$5,$B$6,C116,$B116,$B117)) -> 0.05011824569 | D117: 0.9881734547 | F117: -1.41073526e-05
A118: 80 | B118: 0.24 | C118: =IF(A118="","",CIR($B$4,$B$5,$B$6,C117,$B117,$B118)) -> 0.05009290178 | D118: 0.9880303754 | F118: -2.534391075e-05
A119: 81 | B119: 0.243 | C119: =IF(A119="","",CIR($B$4,$B$5,$B$6,C118,$B118,$B119)) -> 0.05008293509 | D119: 0.9878837987 | F119: -9.966687859e-06
A120: 82 | B120: 0.246 | C120: =IF(A120="","",CIR($B$4,$B$5,$B$6,C119,$B119,$B120)) -> 0.05008558824 | D120: 0.987734256 | F120: 2.653145597e-06
A121: 83 | B121: 0.249 | C121: =IF(A121="","",CIR($B$4,$B$5,$B$6,C120,$B120,$B121)) -> 0.05006304361 | D121: 0.9875908571 | F121: -2.254462964e-05
A122: 84 | B122: 0.252 | C122: =IF(A122="","",CIR($B$4,$B$5,$B$6,C121,$B121,$B122)) -> 0.05003550107 | D122: 0.9874488373 | F122: -2.754253187e-05
A123: 85 | B123: 0.255 | C123: =IF(A123="","",CIR($B$4,$B$5,$B$6,C122,$B122,$B123)) -> 0.04998236712 | D123: 0.9873133781 | F123: -5.313395697e-05
A124: 86 | B124: 0.258 | C124: =IF(A124="","",CIR($B$4,$B$5,$B$6,C123,$B123,$B124)) -> 0.05000043422 | D124: 0.9871602699 | F124: 1.806709811e-05
A125: 87 | B125: 0.261 | C125: =IF(A125="","",CIR($B$4,$B$5,$B$6,C124,$B124,$B125)) -> 0.05000036567 | D125: 0.987011704 | F125: -6.854209005e-08
A126: 88 | B126: 0.264 | C126: =IF(A126="","",CIR($B$4,$B$5,$B$6,C125,$B125,$B126)) -> 0.04996133419 | D126: 0.9868732126 | F126: -3.90314822e-05
A127: 89 | B127: 0.267 | C127: =IF(A127="","",CIR($B$4,$B$5,$B$6,C126,$B126,$B127)) -> 0.04997239799 | D127: 0.9867218867 | F127: 1.106379972e-05
A128: 90 | B128: 0.27 | C128: =IF(A128="","",CIR($B$4,$B$5,$B$6,C127,$B127,$B128)) -> 0.04998461514 | D128: 0.9865702097 | F128: 1.221715341e-05
A129: 91 | B129: 0.273 | C129: =IF(A129="","",CIR($B$4,$B$5,$B$6,C128,$B128,$B129)) -> 0.05000412902 | D129: 0.986416533 | F129: 1.951387069e-05
A130: 92 | B130: 0.276 | C130: =IF(A130="","",CIR($B$4,$B$5,$B$6,C129,$B129,$B130)) -> 0.05000906008 | D130: 0.9862666926 | F130: 4.931065719e-06
A131: 93 | B131: 0.279 | C131: =IF(A131="","",CIR($B$4,$B$5,$B$6,C130,$B130,$B131)) -> 0.05003397865 | D131: 0.986111395 | F131: 2.49185677e-05
A132: 94 | B132: 0.282 | C132: =IF(A132="","",CIR($B$4,$B$5,$B$6,C131,$B131,$B132)) -> 0.05007008583 | D132: 0.9859528913 | F132: 3.610718207e-05
A133: 95 | B133: 0.285 | C133: =IF(A133="","",CIR($B$4,$B$5,$B$6,C132,$B132,$B133)) -> 0.05007220918 | D133: 0.9858036509 | F133: 2.123351917e-06
A134: 96 | B134: 0.288 | C134: =IF(A134="","",CIR($B$4,$B$5,$B$6,C133,$B133,$B134)) -> 0.05007411322 | D134: 0.9856544768 | F134: 1.904037243e-06
A135: 97 | B135: 0.291 | C135: =IF(A135="","",CIR($B$4,$B$5,$B$6,C134,$B134,$B135)) -> 0.05009089312 | D135: 0.9855010856 | F135: 1.677990493e-05
A136: 98 | B136: 0.294 | C136: =IF(A136="","",CIR($B$4,$B$5,$B$6,C135,$B135,$B136)) -> 0.0500772244 | D136: 0.9853563458 | F136: -1.366872052e-05
A137: 99 | B137: 0.297 | C137: =IF(A137="","",CIR($B$4,$B$5,$B$6,C136,$B136,$B137)) -> 0.05009803271 | D137: 0.9852017171 | F137: 2.080830794e-05
A138: 100 | B138: 0.3 | C138: =IF(A138="","",CIR($B$4,$B$5,$B$6,C137,$B137,$B138)) -> 0.05011349485 | D138: 0.9850485498 | F138: 1.54621351e-05
A139: 101 | B139: 0.303 | C139: =IF(A139="","",CIR($B$4,$B$5,$B$6,C138,$B138,$B139)) -> 0.05008425615 | D139: 0.9849085101 | F139: -2.923869697e-05
A140: 102 | B140: 0.306 | C140: =IF(A140="","",CIR($B$4,$B$5,$B$6,C139,$B139,$B140)) -> 0.05010181627 | D140: 0.9847547021 | F140: 1.756011576e-05
A141: 103 | B141: 0.309 | C141: =IF(A141="","",CIR($B$4,$B$5,$B$6,C140,$B140,$B141)) -> 0.05002863897 | D141: 0.9846281198 | F141: -7.317729709e-05
A142: 104 | B142: 0.312 | C142: =IF(A142="","",CIR($B$4,$B$5,$B$6,C141,$B141,$B142)) -> 0.05005057668 | D142: 0.9844730735 | F142: 2.193770815e-05
A143: 105 | B143: 0.315 | C143: =IF(A143="","",CIR($B$4,$B$5,$B$6,C142,$B142,$B143)) -> 0.05009798344 | D143: 0.9843101091 | F143: 4.74067606e-05
A144: 106 | B144: 0.318 | C144: =IF(A144="","",CIR($B$4,$B$5,$B$6,C143,$B143,$B144)) -> 0.0501270242 | D144: 0.9841525763 | F144: 2.904076013e-05
A145: 107 | B145: 0.321 | C145: =IF(A145="","",CIR($B$4,$B$5,$B$6,C144,$B144,$B145)) -> 0.05014786423 | D145: 0.9839974568 | F145: 2.084002813e-05
A146: 108 | B146: 0.324 | C146: =IF(A146="","",CIR($B$4,$B$5,$B$6,C145,$B145,$B146)) -> 0.05015896116 | D146: 0.9838453066 | F146: 1.109693037e-05
A147: 109 | B147: 0.327 | C147: =IF(A147="","",CIR($B$4,$B$5,$B$6,C146,$B146,$B147)) -> 0.05021153618 | D147: 0.9836799204 | F147: 5.257502645e-05
A148: 110 | B148: 0.33 | C148: =IF(A148="","",CIR($B$4,$B$5,$B$6,C147,$B147,$B148)) -> 0.0502200201 | D148: 0.9835283988 | F148: 8.483916375e-06
A149: 111 | B149: 0.333 | C149: =IF(A149="","",CIR($B$4,$B$5,$B$6,C148,$B148,$B149)) -> 0.05022223395 | D149: 0.9833788755 | F149: 2.213852258e-06
A150: 112 | B150: 0.336 | C150: =IF(A150="","",CIR($B$4,$B$5,$B$6,C149,$B149,$B150)) -> 0.05022627984 | D150: 0.9832287586 | F150: 4.045883987e-06
A151: 113 | B151: 0.339 | C151: =IF(A151="","",CIR($B$4,$B$5,$B$6,C150,$B150,$B151)) -> 0.0502327071 | D151: 0.9830778515 | F151: 6.427262083e-06
A152: 114 | B152: 0.342 | C152: =IF(A152="","",CIR($B$4,$B$5,$B$6,C151,$B151,$B152)) -> 0.05025070262 | D152: 0.9829230827 | F152: 1.799552072e-05
A153: 115 | B153: 0.345 | C153: =IF(A153="","",CIR($B$4,$B$5,$B$6,C152,$B152,$B153)) -> 0.050251237 | D153: 0.9827740782 | F153: 5.343787878e-07
A154: 116 | B154: 0.348 | C154: =IF(A154="","",CIR($B$4,$B$5,$B$6,C153,$B153,$B154)) -> 0.05023409467 | D154: 0.9826310591 | F154: -1.714232848e-05
A155: 117 | B155: 0.351 | C155: =IF(A155="","",CIR($B$4,$B$5,$B$6,C154,$B154,$B155)) -> 0.05026543919 | D155: 0.9824716378 | F155: 3.134451668e-05
A156: 118 | B156: 0.354 | C156: =IF(A156="","",CIR($B$4,$B$5,$B$6,C155,$B155,$B156)) -> 0.05032292353 | D156: 0.9823030792 | F156: 5.748434493e-05
A157: 119 | B157: 0.357 | C157: =IF(A157="","",CIR($B$4,$B$5,$B$6,C156,$B156,$B157)) -> 0.05029608826 | D157: 0.9821634103 | F157: -2.683526682e-05
A158: 120 | B158: 0.36 | C158: =IF(A158="","",CIR($B$4,$B$5,$B$6,C157,$B157,$B158)) -> 0.05026363111 | D158: 0.9820258726 | F158: -3.245715605e-05
A159: 121 | B159: 0.363 | C159: =IF(A159="","",CIR($B$4,$B$5,$B$6,C158,$B158,$B159)) -> 0.0502764582 | D159: 0.9818725992 | F159: 1.282709308e-05
A160: 122 | B160: 0.366 | C160: =IF(A160="","",CIR($B$4,$B$5,$B$6,C159,$B159,$B160)) -> 0.05024498694 | D160: 0.9817349844 | F160: -3.147125854e-05
A161: 123 | B161: 0.369 | C161: =IF(A161="","",CIR($B$4,$B$5,$B$6,C160,$B160,$B161)) -> 0.05026541284 | D161: 0.9815790084 | F161: 2.042589652e-05
A162: 124 | B162: 0.372 | C162: =IF(A162="","",CIR($B$4,$B$5,$B$6,C161,$B161,$B162)) -> 0.05027694168 | D162: 0.9814261407 | F162: 1.152884338e-05
A163: 125 | B163: 0.375 | C163: =IF(A163="","",CIR($B$4,$B$5,$B$6,C162,$B162,$B163)) -> 0.05025413028 | D163: 0.9812856966 | F163: -2.281140284e-05
A164: 126 | B164: 0.378 | C164: =IF(A164="","",CIR($B$4,$B$5,$B$6,C163,$B163,$B164)) -> 0.05029457303 | D164: 0.9811222482 | F164: 4.044275409e-05
A165: 127 | B165: 0.381 | C165: =IF(A165="","",CIR($B$4,$B$5,$B$6,C164,$B164,$B165)) -> 0.05033450063 | D165: 0.9809587798 | F165: 3.992759777e-05
A166: 128 | B166: 0.384 | C166: =IF(A166="","",CIR($B$4,$B$5,$B$6,C165,$B165,$B166)) -> 0.05036409707 | D166: 0.9807989434 | F166: 2.959644192e-05
A167: =IF(A166="","",IF(A166+1<=$B$10,A166+1,"")) -> 129 | B167: =IF(A167="","",B166+$B$11) -> 0.387 | C167: =IF(A167="","",CIR($B$4,$B$5,$B$6,C166,$B166,$B167)) -> 0.05038882169 | D167: 0.9806407822 | F167: 2.472461681e-05
A168: 130 | B168: 0.39 | C168: =IF(A168="","",CIR($B$4,$B$5,$B$6,C167,$B167,$B168)) -> 0.05032660148 | D168: =IF(A168="","",CIR_ZBDF($B$4,$B$5,$B$6,$C168,$B$8,B168)) -> 0.9805152949 | F168: =IF(A168="","",C168-C167) -> -6.222021446e-05
A169: 131 | B169: 0.393 | C169: =IF(A169="","",CIR($B$4,$B$5,$B$6,C168,$B168,$B169)) -> 0.05038283018 | D169: 0.980345163 | F169: 5.622870933e-05
A170: 132 | B170: 0.396 | C170: =IF(A170="","",CIR($B$4,$B$5,$B$6,C169,$B169,$B170)) -> 0.05039740979 | D170: 0.9801906767 | F170: 1.457960162e-05
A171: 133 | B171: 0.399 | C171: =IF(A171="","",CIR($B$4,$B$5,$B$6,C170,$B170,$B171)) -> 0.05039708098 | D171: 0.9800418748 | F171: -3.288092754e-07
A172: 134 | B172: 0.402 | C172: =IF(A172="","",CIR($B$4,$B$5,$B$6,C171,$B171,$B172)) -> 0.05039855941 | D172: 0.9798923901 | F172: 1.478437491e-06
A173: 135 | B173: 0.405 | C173: =IF(A173="","",CIR($B$4,$B$5,$B$6,C172,$B172,$B173)) -> 0.05041351765 | D173: 0.9797376413 | F173: 1.49582401e-05
A174: 136 | B174: 0.408 | C174: =IF(A174="","",CIR($B$4,$B$5,$B$6,C173,$B173,$B174)) -> 0.05048381441 | D174: 0.9795610238 | F174: 7.029675251e-05
A175: 137 | B175: 0.411 | C175: =IF(A175="","",CIR($B$4,$B$5,$B$6,C174,$B174,$B175)) -> 0.05050030119 | D175: 0.9794053816 | F175: 1.648678756e-05
A176: 138 | B176: 0.414 | C176: =IF(A176="","",CIR($B$4,$B$5,$B$6,C175,$B175,$B176)) -> 0.05051094445 | D176: 0.9792519995 | F176: 1.064325731e-05
A177: 139 | B177: 0.417 | C177: =IF(A177="","",CIR($B$4,$B$5,$B$6,C176,$B176,$B177)) -> 0.05055126194 | D177: 0.9790866363 | F177: 4.031748366e-05
A178: 140 | B178: 0.42 | C178: =IF(A178="","",CIR($B$4,$B$5,$B$6,C177,$B177,$B178)) -> 0.05056154835 | D178: 0.9789332324 | F178: 1.028641052e-05
A179: 141 | B179: 0.423 | C179: =IF(A179="","",CIR($B$4,$B$5,$B$6,C178,$B178,$B179)) -> 0.05065939512 | D179: 0.9787440717 | F179: 9.784676964e-05
A180: 142 | B180: 0.426 | C180: =IF(A180="","",CIR($B$4,$B$5,$B$6,C179,$B179,$B180)) -> 0.05062232879 | D180: 0.978609792 | F180: -3.706632469e-05
A181: 143 | B181: 0.429 | C181: =IF(A181="","",CIR($B$4,$B$5,$B$6,C180,$B180,$B181)) -> 0.05063839773 | D181: 0.978453766 | F181: 1.606893748e-05
A182: 144 | B182: 0.432 | C182: =IF(A182="","",CIR($B$4,$B$5,$B$6,C181,$B181,$B182)) -> 0.0506472417 | D182: 0.9783006759 | F182: 8.843974529e-06
A183: 145 | B183: 0.435 | C183: =IF(A183="","",CIR($B$4,$B$5,$B$6,C182,$B182,$B183)) -> 0.05066397506 | D183: 0.9781442482 | F183: 1.673335236e-05
A184: 146 | B184: 0.438 | C184: =IF(A184="","",CIR($B$4,$B$5,$B$6,C183,$B183,$B184)) -> 0.05059987303 | D184: 0.978021844 | F184: -6.410202247e-05
A185: 147 | B185: 0.441 | C185: =IF(A185="","",CIR($B$4,$B$5,$B$6,C184,$B184,$B185)) -> 0.05064036797 | D185: 0.977855401 | F185: 4.049493735e-05
A186: 148 | B186: 0.444 | C186: =IF(A186="","",CIR($B$4,$B$5,$B$6,C185,$B185,$B186)) -> 0.05062676289 | D186: 0.9777118724 | F186: -1.360508136e-05
A187: 149 | B187: 0.447 | C187: =IF(A187="","",CIR($B$4,$B$5,$B$6,C186,$B186,$B187)) -> 0.05057383145 | D187: 0.9775853542 | F187: -5.293143726e-05
A188: 150 | B188: 0.45 | C188: =IF(A188="","",CIR($B$4,$B$5,$B$6,C187,$B187,$B188)) -> 0.05060191566 | D188: 0.9774240721 | F188: 2.808421173e-05
A189: 151 | B189: 0.453 | C189: =IF(A189="","",CIR($B$4,$B$5,$B$6,C188,$B188,$B189)) -> 0.05053090879 | D189: 0.9773058283 | F189: -7.100686989e-05
A190: 152 | B190: 0.456 | C190: =IF(A190="","",CIR($B$4,$B$5,$B$6,C189,$B189,$B190)) -> 0.05050727956 | D190: 0.9771672212 | F190: -2.36292355e-05
A191: 153 | B191: 0.459 | C191: =IF(A191="","",CIR($B$4,$B$5,$B$6,C190,$B190,$B191)) -> 0.05056491498 | D191: 0.9769929025 | F191: 5.763542465e-05
A192: 154 | B192: 0.462 | C192: =IF(A192="","",CIR($B$4,$B$5,$B$6,C191,$B191,$B192)) -> 0.05053610939 | D192: 0.9768566656 | F192: -2.880559583e-05
A193: 155 | B193: 0.465 | C193: =IF(A193="","",CIR($B$4,$B$5,$B$6,C192,$B192,$B193)) -> 0.05047986967 | D193: 0.9767328642 | F193: -5.623971529e-05
A194: 156 | B194: 0.468 | C194: =IF(A194="","",CIR($B$4,$B$5,$B$6,C193,$B193,$B194)) -> 0.05047513514 | D194: 0.9765862357 | F194: -4.734533447e-06
A195: 157 | B195: 0.471 | C195: =IF(A195="","",CIR($B$4,$B$5,$B$6,C194,$B194,$B195)) -> 0.0504697729 | D195: 0.9764399349 | F195: -5.362237543e-06
A196: 158 | B196: 0.474 | C196: =IF(A196="","",CIR($B$4,$B$5,$B$6,C195,$B195,$B196)) -> 0.05048017171 | D196: 0.9762865081 | F196: 1.039881417e-05
A197: 159 | B197: 0.477 | C197: =IF(A197="","",CIR($B$4,$B$5,$B$6,C196,$B196,$B197)) -> 0.05048831884 | D197: 0.9761340724 | F197: 8.147127992e-06
A198: 160 | B198: 0.48 | C198: =IF(A198="","",CIR($B$4,$B$5,$B$6,C197,$B197,$B198)) -> 0.05046589154 | D198: 0.9759956932 | F198: -2.242729986e-05
A199: 161 | B199: 0.483 | C199: =IF(A199="","",CIR($B$4,$B$5,$B$6,C198,$B198,$B199)) -> 0.05040492588 | D199: 0.9758753146 | F199: -6.096566508e-05
A200: 162 | B200: 0.486 | C200: =IF(A200="","",CIR($B$4,$B$5,$B$6,C199,$B199,$B200)) -> 0.05032398542 | D200: 0.9757646029 | F200: -8.094046163e-05
A201: 163 | B201: 0.489 | C201: =IF(A201="","",CIR($B$4,$B$5,$B$6,C200,$B200,$B201)) -> 0.0503347837 | D201: 0.9756113345 | F201: 1.079828709e-05
A202: 164 | B202: 0.492 | C202: =IF(A202="","",CIR($B$4,$B$5,$B$6,C201,$B201,$B202)) -> 0.05040856962 | D202: 0.9754283131 | F202: 7.378591587e-05
A203: 165 | B203: 0.495 | C203: =IF(A203="","",CIR($B$4,$B$5,$B$6,C202,$B202,$B203)) -> 0.05047191231 | D203: 0.9752498584 | F203: 6.334268659e-05
A204: 166 | B204: 0.498 | C204: =IF(A204="","",CIR($B$4,$B$5,$B$6,C203,$B203,$B204)) -> 0.05043924644 | D204: 0.9751168864 | F204: -3.26658684e-05
A205: 167 | B205: 0.501 | C205: =IF(A205="","",CIR($B$4,$B$5,$B$6,C204,$B204,$B205)) -> 0.05043025142 | D205: 0.9749727513 | F205: -8.995013656e-06
... 10001 more rows
